fUSD/lending_fUSD_20241125
["ID","MTS","AMOUNT","RATE_DAILY","PERIOD"]
[343280347,1732539046545,-500.0,0.0003867,21]
[343280349,1732539046553,-500.0,0.0003867,21]
[343280351,1732539046562,-500.0,0.0003867,21]
[343280353,1732539046571,-500.0,0.0003867,21]
[343280355,1732539046580,-500.0,0.0003867,21]
[343280357,1732539046590,-500.0,0.0003867,21]
[343280359,1732539046599,-500.0,0.0003867,21]
[343280361,1732539046608,-500.0,0.0003867,21]
[343280363,1732539046620,-500.0,0.0003867,21]
[343280365,1732539046630,-1000.0,0.0003867,21]
[343280367,1732539046639,-500.0,0.0003867,21]
[343280369,1732539046648,-500.0,0.0003867,21]
[343280371,1732539046658,-500.0,0.0003867,21]
[343280373,1732539046667,-500.0,0.0003867,21]
[343280375,1732539046677,-500.0,0.0003867,21]
[343280378,1732539046687,-500.0,0.0003867,21]
[343280381,1732539046696,-238.22273005,0.0003867,21]
[343280384,1732539046712,-261.77726995,0.0003867,21]
[343280386,1732539046721,-500.0,0.0003867,21]
[343280388,1732539046731,-500.0,0.0003867,21]
[343280390,1732539046745,-500.0,0.0003867,21]
[343280392,1732539046754,-500.0,0.0003867,21]
[343280394,1732539046763,-150.0,0.0003867,21]
[343280396,1732539046774,-500.0,0.0003867,21]
[343280398,1732539046784,-632.29,0.0003867,21]
[343280400,1732539046793,-500.0,0.0003867,21]
[343280402,1732539046803,-500.0,0.0003867,21]
[343280404,1732539046813,-500.0,0.0003867,21]
[343280406,1732539046822,-205.77154282,0.0003867,21]
[343280408,1732539046833,-294.22845718,0.0003867,21]
[343280410,1732539046842,-500.0,0.0003867,21]
[343280412,1732539046852,-500.0,0.0003867,21]
[343280414,1732539046862,-500.0,0.0003867,21]
[343280416,1732539046875,-500.0,0.0003867,21]
[343280418,1732539046885,-500.0,0.0003867,21]
[343280420,1732539046895,-194.76993594,0.0003867,21]
[343280432,1732539046993,-400.0,0.00037,2]
[343280434,1732539047003,-246.38671336,0.0003867,21]
[343280436,1732539047014,-65.44685441,0.0003867,21]
[343280438,1732539047024,-228.11814559,0.0003867,21]
[343280441,1732539047039,-271.88185441,0.0003867,21]
[343280443,1732539047048,-500.0,0.0003867,21]
[343280444,1732539047057,-500.0,0.0003867,21]
[343280446,1732539047066,-500.0,0.0003867,21]
[343280449,1732539047076,-500.0,0.0003867,21]
[343280451,1732539047085,-500.0,0.0003867,21]
[343280453,1732539047095,-500.0,0.0003867,21]
[343280455,1732539047104,-500.0,0.0003867,21]
[343280457,1732539047117,-500.0,0.0003867,21]
[343280459,1732539047127,-500.0,0.0003867,21]
[343280461,1732539047136,-500.0,0.0003867,21]
[343280462,1732539047145,-500.0,0.0003867,21]
[343280465,1732539047155,-410.80121709,0.0003867,21]
[343282317,1732539133480,151.0,0.0003,120]
[343282318,1732539233999,150.0,0.0003,2]
[343282470,1732539484924,800.0,0.00026986,120]
[343282490,1732539605481,800.0,0.00026986,120]
[343282508,1732539663975,-4947.0,0.00032,30]
[343282539,1732539787465,680.34,0.00026986,120]
[343282544,1732539887934,1530.0,0.000275,3]
[343282545,1732539888650,1377.0,0.000275,3]
[343282548,1732539967175,800.0,0.00026986,120]
[343282595,1732540231436,-170.663,0.00032674,2]
[343282596,1732540231445,-350.0,0.00033,2]
[343282598,1732540231455,-180.162,0.00033992,2]
[343282600,1732540231465,-151.0,0.00035014,120]
[343282602,1732540231474,-647.07,0.00035638,2]
[343282604,1732540231484,-226.49,0.00037101,2]
[343282606,1732540231494,-519.89,0.00037195,2]
[343282608,1732540231504,-500.0,0.00037198,2]
[343282610,1732540231513,-179.125,0.00037243,2]
[343282614,1732540231548,-471.415,0.00037243,2]
[343282615,1732540231558,-80.14910466,0.00037243,120]
[343282621,1732540231608,-169.85089534,0.00037243,120]
[343282623,1732540231617,-153.03,0.0003732,120]
[343282625,1732540231627,-250.0,0.00037456,2]
[343282627,1732540231636,-79.21813544,0.00037548,120]
[343282629,1732540231649,-82.76186456,0.00037548,120]
[343282631,1732540231658,-150.0,0.0003755,2]
[343282633,1732540231667,-1000.0,0.00037594,2]
[343282635,1732540231680,-1142.0,0.00037637,2]
[343282637,1732540231689,-125.23813544,0.00037638,2]
[343282639,1732540231701,-14703.92724117,0.00037638,2]
[343282935,1732540240349,-8693.86736724,0.00037638,2]
[343282936,1732540240361,-376.96725615,0.00037638,2]
[343282937,1732540240370,-1989.39,0.00037638,2]
[343282938,1732540240379,-250.0,0.00037687,2]
[343282939,1732540240388,-182.79,0.00037728,2]
[343282940,1732540240397,-166.89,0.00037835,2]
[343282941,1732540240406,-647.07,0.00037901,2]
[343282942,1732540240416,-500.0,0.0003828,2]
[343282943,1732540240428,-648.13874492,0.00038369,2]
[343282944,1732540240440,-157.4247771,0.00038369,2]
[343282945,1732540240449,-11913.66971983,0.00038369,2]
[343282946,1732540240466,-26053.32878017,0.00038369,2]
[343282947,1732540240476,-1183.7042,0.00038369,2]
[343282948,1732540240485,-572.4461,0.00038369,2]
[343282949,1732540240495,-460.84,0.00038459,10]
[343282950,1732540240505,-324.27044441,0.00038469,2]
[343282951,1732540240514,-3115.603,0.00038469,2]
[343282952,1732540240524,-4645.8654,0.00038469,2]
[343282953,1732540240534,-12498.44207542,0.00038469,2]
[343282954,1732540240550,-115042.79330391,0.00038469,2]
[343282955,1732540240968,-4290.64165007,0.00038469,2]
[343282956,1732540241058,-3288.1399,0.00038469,2]
[343282957,1732540241074,-10251.00000002,0.00038469,2]
[343282968,1732540242464,-3738.9996,0.00038469,2]
[343282969,1732540242476,-609.19345663,0.00038469,2]
[343282970,1732540242521,-5168.524601,0.00038469,2]
[343282971,1732540242577,-9166.77491123,0.00038469,2]
[343282972,1732540242589,-3092.60726451,0.00038469,2]
[343282973,1732540242600,-10475.0752,0.00038469,2]
[343282974,1732540242694,-32661.61693876,0.00038469,2]
[343282975,1732540242747,-5065.18578878,0.00038469,2]
[343282976,1732540242757,-2297.39741428,0.00038469,2]
[343282977,1732540242768,-1862.98436742,0.00038469,2]
[343282996,1732540245399,-183.47740209,0.00038468,21]
[343282997,1732540245414,-38538.12259797,0.00038469,2]
[343282998,1732540245459,-10493.76164313,0.00038469,2]
[343282999,1732540245633,-1450.29009585,0.00038469,2]
[343283000,1732540245750,-500.0,0.00038468,21]
[343283001,1732540245761,-4608.12900821,0.00038469,2]
[343283002,1732540245799,-967.63694576,0.00038469,2]
[343283003,1732540245813,-8117.72883705,0.00038469,2]
[343283004,1732540245825,-4016.8476,0.00038469,2]
[343283005,1732540245837,-309.8175,0.00038469,2]
[343283006,1732540245849,-264.0998,0.00038469,2]
[343283007,1732540245860,-967.5734,0.00038469,2]
[343283008,1732540245873,-500.0,0.00038473,2]
[343283011,1732540245883,-5000.0,0.00038478,3]
[343283013,1732540245895,-3708.8916,0.00038568,2]
[343283015,1732540245908,-1000.0,0.00038568,2]
[343283017,1732540245919,-500.0,0.00038568,21]
[343283018,1732540245936,-500.0,0.00038568,21]
[343283019,1732540245947,-500.0,0.00038568,21]
[343283020,1732540245959,-500.0,0.00038568,21]
[343283021,1732540245971,-500.0,0.00038568,21]
[343283024,1732540245982,-617.77199735,0.00038568,21]
[343283026,1732540245995,-500.0,0.00038568,21]
[343283028,1732540246006,-1096.08,0.00038568,21]
[343283030,1732540246019,-500.0,0.00038568,21]
[343283033,1732540246030,-2748.59,0.00038568,21]
[343283035,1732540246042,-500.0,0.00038568,21]
[343283037,1732540246054,-500.0,0.00038568,21]
[343283038,1732540246066,-500.0,0.00038568,21]
[343283039,1732540246080,-500.0,0.00038568,21]
[343283040,1732540246091,-1196.535,0.00038569,2]
[343283041,1732540246102,-198.9281,0.00038569,2]
[343283042,1732540246112,-1553.9845,0.00038569,2]
[343283043,1732540246124,-11970.6516656,0.00038569,2]
[343283044,1732540246137,-313.56280533,0.00038569,2]
[343283045,1732540253262,255.0,0.000301,2]
[343283047,1732540334984,151.0,0.0003,120]
[343283049,1732540696272,151.0,0.0003,120]
[343283051,1732540725744,151.0,0.0003,120]
[343283056,1732540878113,225.0,0.0003,60]
[343283058,1732541072250,154.22,0.000301,2]
[343283059,1732541108872,35883.78,0.00013,2]
[343283060,1732541108899,99.0,0.00013,2]
[343283061,1732541108923,400.0,0.00013,2]
[343283062,1732541108946,400.0,0.00013,2]
[343283063,1732541108968,400.0,0.00013,2]
[343283064,1732541108991,600.0,0.00013,2]
[343283065,1732541109017,26449.673873,0.00013,2]
[343283066,1732541109044,2197200.0,0.00013,2]
[343283067,1732541109067,13018089.21978352,0.00013,2]
[343283068,1732541109207,46191.6348735,0.0001,2]
[343283069,1732541132449,720.7597827,1e-06,2]
[343283070,1732541143597,500.0,0.00012973,2]
[343283071,1732541154749,2208.0,0.00015,10]
[343283072,1732541155035,153.7610286,0.00025,60]
[343283074,1732541170057,2776.75739909,0.000199,3]
[343283075,1732541183258,22474.13143695,0.0002361,7]
[343283076,1732541183300,50000.0,0.0002361,7]
[343283077,1732541193391,500.0,0.00012973,2]
[343283078,1732541250399,50000.0,1e-06,7]
[343283079,1732541250427,4212.35901058,1e-06,7]
[343283080,1732541281759,45787.64098942,0.000145,3]
[343283081,1732541281780,126406.2015173,0.000145,3]
[343283082,1732541283687,9583080.76289409,0.00013,2]
[343283084,1732541317574,213.25171085,0.0001,2]
[343283085,1732541321145,2604.61746109,0.0001,2]
[343283087,1732541322650,496.70231085,0.00015,2]
[343283088,1732541322971,5608.13994683,0.00018,2]
[343283089,1732541323754,1028.75161412,0.00018,2]
[343283090,1732541323803,814.84594597,0.00013,2]
[343283091,1732541324041,8008.11278019,0.0001,2]
[343283092,1732541324392,295.98438683,0.000151,2]
[343283093,1732541324516,255.53946584,0.000107,2]
[343283094,1732541325019,483.11610682,0.000154,2]
[343283095,1732541325296,2047.66307032,0.0002,2]
[343283096,1732541327027,150.0,9e-05,3]
[343283110,1732541405270,200000.0,0.00033,30]
[343283136,1732541433142,-300.0,0.00020899,2]
[343283137,1732541433152,-1139.54169839,0.00021,2]
[343283138,1732541433163,-188.03089646,0.00021,2]
[343283139,1732541433173,-3330.38205221,0.00022,2]
[343283140,1732541433217,-486.36,0.00022,2]
[343283141,1732541433229,-748.6295664,0.00022,2]
[343283142,1732541433238,-206.04525502,0.000225,2]
[343283143,1732541433249,-2379.0,0.0002268,2]
[343283144,1732541433259,-420.0,0.00022736,2]
[343283145,1732541433271,-266.96582098,0.0002301,2]
[343283146,1732541433286,-5048.02393338,0.000232,2]
[343283147,1732541433297,-566.77475498,0.0002322,2]
[343283148,1732541433307,-500.0,0.00023609,2]
[343283149,1732541433318,-628.14594064,0.00023609,2]
[343283150,1732541433329,-33517.64177863,0.0002361,7]
[343283151,1732541433557,-194530.0,0.0002361,7]
[343283152,1732541433568,-97481.52139684,0.0002361,7]
[343283153,1732541433587,-1461.77082844,0.0002361,7]
[343283154,1732541433600,-28618.74527759,0.0002361,7]
[343283155,1732541433625,-39865.8392902,0.0002361,7]
[343283156,1732541433636,-9724.6,0.0002361,7]
[343283166,1732541437655,-188.50599756,0.000219,2]
[343283167,1732541437673,-4009.98627741,0.0002361,7]
[343283169,1732541437685,-27381.24774052,0.0002361,7]
[343283170,1732541437720,-2856.24664533,0.0002361,7]
[343283171,1732541437899,-188.50599756,0.000224,2]
[343283172,1732541437910,-9624.9811848,0.0002361,7]
[343283173,1732541437921,-726.996065,0.0002361,7]
[343283322,1732541439747,-637.05450018,0.0002361,7]
[343283329,1732541439808,-1073.18051225,0.0002361,7]
[343283690,1732541443119,-11999.96141686,0.000209,2]
[343283692,1732541443128,-550.90697527,0.00023609,2]
[343283694,1732541443137,-102441.10830685,0.0002361,7]
[343283695,1732541443147,-168.88280952,0.0002411,2]
[343283697,1732541443157,-1060.69830059,0.0002421,2]
[343283699,1732541443171,-587.0,0.00024734,2]
[343283701,1732541443180,-813.79,0.00024988,2]
[343283703,1732541443190,-225.92698784,0.00025,2]
[343283705,1732541443200,-519.37732214,0.0002604,2]
[343283707,1732541443210,-195.54834125,0.00026399,2]
[343283709,1732541443220,-26201.74279936,0.000264,2]
[343283712,1732541443230,-500.0,0.000264,2]
[343283714,1732541443240,-505.96703557,0.000264,2]
[343283716,1732541443250,-1000.0,0.00026948,2]
[343283718,1732541443260,-150.0,0.00026976,2]
[343283720,1732541443269,-2995.56009148,0.00027,7]
[343283721,1732541443279,-987.67598561,0.00027,2]
[343283723,1732541443289,-813.79,0.00027252,2]
[343283725,1732541443299,-1494.36328,0.0002795,5]
[343283728,1732541443308,-316069.71597281,0.00028,4]
[343283730,1732541443318,-813.79,0.00029516,2]
[343283731,1732541443327,-210.49403152,0.00029613,2]
[343283734,1732541443338,-3279.4,0.00029815,2]
[343283735,1732541443350,-1704.96,0.00029815,2]
[343283738,1732541443360,-8557.63,0.00029815,2]
[343283739,1732541443369,-11926.92661373,0.000299,7]
[343283742,1732541443380,-226.68684048,0.0002999,2]
[343283744,1732541443390,-4708.00162058,0.0003,2]
[343283746,1732541443400,-1504.54,0.0003,2]
[343283748,1732541443414,-1733.62488953,0.0003,2]
[343283750,1732541443424,-531.39953118,0.0003,2]
[343283752,1732541443434,-1017.30367171,0.0003,2]
[343283754,1732541443443,-1251.12467021,0.0003,2]
[343283756,1732541443453,-300.0,0.0003,3]
[343283758,1732541443463,-210.0,0.0003,2]
[343283760,1732541443473,-168.88280948,0.00030524,2]
[343283762,1732541443483,-155.84,0.00030685,2]
[343283764,1732541443493,-152.98,0.00030685,2]
[343283766,1732541443503,-250.0,0.00031,2]
[343283768,1732541443512,-2930.79,0.00031,5]
[343283770,1732541443522,-4064.37593236,0.0003143,4]
[343283772,1732541443531,-813.79,0.0003178,2]
[343283774,1732541443541,-1000.0,0.00031973,2]
[343283776,1732541443551,-152.08875,0.000325,2]
[343283778,1732541443560,-221640.17990473,0.000325,2]
[343283780,1732541443568,-250.0,0.00032519,2]
[343283782,1732541443577,-1300.0,0.000329,12]
[343283784,1732541443588,-300.0,0.00033,2]
[343283786,1732541443597,-150.99,0.00033,2]
[343283788,1732541443607,-151.0,0.00033534,120]
[343283790,1732541443616,-813.79,0.00034044,2]
[343283792,1732541443627,-350.0,0.00035,2]
[343283794,1732541443637,-208.83726609,0.00035,2]
[343283795,1732541443646,-13087.43,0.00035956,2]
[343283798,1732541443656,-1000.0,0.0003597,2]
[343283800,1732541443670,-172.42612618,0.00036,2]
[343283802,1732541443680,-200.0,0.00036025,2]
[343283804,1732541443690,-18357.06,0.00036054,2]
[343283806,1732541443699,-382.12,0.00036074,120]
[343283807,1732541443708,-296.31,0.00036074,2]
[343283809,1732541443717,-735.11,0.00036079,2]
[343283811,1732541443726,-801.73,0.00036156,2]
[343283813,1732541443736,-813.79,0.00036308,2]
[343283815,1732541443745,-1086.67,0.00036369,120]
[343283817,1732541443754,-250.0,0.00036378,2]
[343283819,1732541443764,-1012.25,0.0003648,2]
[343283821,1732541443773,-1798.36,0.00036532,2]
[343283823,1732541443783,-4232.18,0.00036543,2]
[343283825,1732541443792,-174.24,0.00036624,2]
[343283827,1732541443801,-151.0,0.00036658,120]
[343283829,1732541443811,-210.49403152,0.00036666,11]
[343283831,1732541443820,-250.0,0.00036714,120]
[343283833,1732541443830,-231.58,0.0003674,2]
[343283835,1732541443839,-500.0,0.00036751,2]
[343283837,1732541443849,-2610.43,0.00036751,2]
[343283840,1732541443858,-500.0,0.00036766,2]
[343283841,1732541443867,-5767.47948074,0.0003679,2]
[343283843,1732541443876,-45231.85,0.000368,21]
[343283845,1732541443886,-153.7,0.00036837,120]
[343283847,1732541443897,-1202.90157653,0.000369,2]
[343283849,1732541443907,-168.88280948,0.00036937,2]
[343283851,1732541443919,-2544.36,0.00036943,2]
[343283853,1732541443929,-23900.0,0.00036948,2]
[343283855,1732541443938,-400.0,0.00037,2]
[343283857,1732541443948,-151.0,0.00037068,120]
[343283859,1732541443958,-160.83598586,0.00037375,5]
[343283861,1732541443967,-288.86,0.00037483,120]
[343283863,1732541443976,-174.16,0.00037554,2]
[343283865,1732541443986,-3846.155,0.00037579,2]
[343283867,1732541443996,-2500.0,0.00037771,2]
[343283869,1732541444006,-6757.7969,0.00037871,2]
[343283870,1732541444015,-217.4583,0.00037871,2]
[343283871,1732541444024,-309.8175,0.00037871,2]
[343283872,1732541444034,-296.31,0.00037878,2]
[343283873,1732541444043,-2700.0,0.000379,13]
[343283874,1732541444052,-174.22,0.00037955,2]
[343283875,1732541444061,-168.41,0.00038032,2]
[343283876,1732541444070,-2637.7209,0.00038268,2]
[343283877,1732541444079,-841.0814,0.00038268,2]
[343283878,1732541444088,-820.4735,0.00038269,2]
[343283880,1732541444097,-7769.9505,0.00038269,2]
[343283882,1732541444106,-4585.1205,0.00038269,2]
[343283884,1732541444115,-27512.5325,0.00038269,2]
[343283886,1732541444125,-155.84,0.00038278,2]
[343283887,1732541444134,-152.98,0.00038278,2]
[343283889,1732541444144,-749.9,0.000383,30]
[343283891,1732541444153,-1202.9015765,0.00038329,2]
[343283893,1732541444165,-500.0,0.00038356,21]
[343283895,1732541444175,-500.0,0.00038356,21]
[343283897,1732541444185,-500.0,0.00038356,21]
[343283899,1732541444195,-500.0,0.00038356,21]
[343283901,1732541444205,-500.0,0.00038356,21]
[343283903,1732541444215,-500.0,0.00038356,21]
[343283905,1732541444226,-500.0,0.00038356,21]
[343283907,1732541444235,-500.0,0.00038356,21]
[343283909,1732541444245,-500.0,0.00038356,21]
[343283911,1732541444254,-500.0,0.00038356,21]
[343283913,1732541444263,-500.0,0.00038356,21]
[343283915,1732541444272,-1050.41,0.00038356,21]
[343283917,1732541444281,-141.51743255,0.00038356,21]
[343283940,1732541444493,-358.48256745,0.00038356,21]
[343283942,1732541444502,-500.0,0.00038356,21]
[343283944,1732541444512,-2634.07,0.00038356,21]
[343283946,1732541444521,-500.0,0.00038356,21]
[343283948,1732541444531,-323.61720362,0.00038356,21]
[343283951,1732541444553,-176.38279638,0.00038356,21]
[343283953,1732541444563,-328.21551735,0.00038356,2]
[343283955,1732541444572,-500.0,0.00038356,21]
[343283957,1732541444581,-163.68774196,0.00038356,21]
[343283959,1732541444591,-500.0,0.00038356,21]
[343283961,1732541444599,-500.0,0.00038356,21]
[343283963,1732541444609,-501.31762008,0.00038356,21]
[343283965,1732541444618,-500.0,0.00038356,21]
[343283967,1732541444628,-500.0,0.00038356,2]
[343283969,1732541444637,-500.0,0.00038356,21]
[343283971,1732541444647,-500.0,0.00038356,21]
[343283973,1732541444656,-500.0,0.00038356,21]
[343283975,1732541444668,-500.0,0.00038356,21]
[343283977,1732541444678,-300.0,0.00038356,2]
[343283979,1732541444687,-9416.60197559,0.00038366,5]
[343283981,1732541444699,-583.39802441,0.00038366,5]
[343283983,1732541444709,-500.0,0.00038367,21]
[343283985,1732541444719,-1918.74,0.00038367,21]
[343283987,1732541444728,-46.08666433,0.00038367,21]
[343283989,1732541444740,-453.91333567,0.00038367,21]
[343283991,1732541444750,-500.0,0.00038367,21]
[343283993,1732541444760,-500.0,0.00038367,21]
[343283996,1732541444770,-500.0,0.00038367,21]
[343283998,1732541444779,-500.0,0.00038367,21]
[343283999,1732541444788,-500.0,0.00038367,21]
[343284002,1732541444798,-60.72298112,0.00038367,21]
[343284004,1732541444809,-1173.70701888,0.00038367,21]
[343284006,1732541444819,-219.70949208,0.00038368,21]
[343284013,1732541444876,-280.29050792,0.00038368,21]
[343284014,1732541444885,-500.0,0.00038368,21]
[343284017,1732541444895,-613.59,0.00038368,21]
[343284018,1732541444903,-500.0,0.00038368,21]
[343284021,1732541444917,-500.0,0.00038368,21]
[343284023,1732541444926,-500.0,0.00038368,21]
[343284025,1732541444935,-500.0,0.00038368,21]
[343284027,1732541444944,-374.609,0.00038368,21]
[343284029,1732541444954,-500.0,0.00038368,21]
[343284031,1732541444963,-500.0,0.00038368,21]
[343284032,1732541444972,-500.0,0.00038368,21]
[343284034,1732541444982,-500.0,0.00038368,21]
[343284037,1732541444992,-500.0,0.00038368,21]
[343284039,1732541445001,-500.0,0.00038368,21]
[343284040,1732541445011,-500.0,0.00038368,21]
[343284042,1732541445020,-500.0,0.00038368,21]
[343284044,1732541445030,-394.49,0.00038368,21]
[343284046,1732541445041,-500.0,0.00038368,21]
[343284048,1732541445050,-500.0,0.00038368,21]
[343284050,1732541445060,-500.0,0.00038368,21]
[343284052,1732541445070,-500.0,0.00038368,21]
[343284055,1732541445079,-500.0,0.00038368,21]
[343284057,1732541445089,-500.0,0.00038368,21]
[343284058,1732541445098,-500.0,0.00038368,21]
[343284061,1732541445108,-500.0,0.00038368,21]
[343284062,1732541445117,-500.0,0.00038368,21]
[343284064,1732541445127,-500.0,0.00038368,21]
[343284066,1732541445136,-506.69852902,0.00038368,21]
[343284068,1732541445146,-500.0,0.00038368,21]
[343284070,1732541445156,-282.24510383,0.00038368,21]
[343284072,1732541445169,-500.0,0.00038368,21]
[343284075,1732541445182,-500.0,0.00038368,21]
[343284077,1732541445192,-500.0,0.00038368,21]
[343284079,1732541445202,-500.0,0.00038368,21]
[343284081,1732541445211,-500.0,0.00038368,21]
[343284083,1732541445221,-500.0,0.00038368,21]
[343284085,1732541445231,-500.0,0.00038368,21]
[343284086,1732541445240,-500.0,0.00038368,21]
[343284088,1732541445249,-500.0,0.00038368,21]
[343284090,1732541445260,-953.86,0.00038368,21]
[343284092,1732541445270,-500.0,0.00038368,21]
[343284094,1732541445279,-500.0,0.00038368,21]
[343284095,1732541445291,-500.0,0.00038368,21]
[343284097,1732541445309,-500.0,0.00038368,21]
[343284099,1732541445328,-500.0,0.00038368,21]
[343284101,1732541445348,-500.0,0.00038368,21]
[343284104,1732541445368,-500.0,0.00038368,21]
[343284106,1732541445386,-500.0,0.00038368,21]
[343284108,1732541445405,-631.3,0.00038368,21]
[343284110,1732541445428,-500.0,0.00038368,21]
[343284112,1732541445449,-500.0,0.00038368,21]
[343284114,1732541445472,-500.0,0.00038368,21]
[343284116,1732541445496,-500.0,0.00038368,21]
[343284119,1732541445520,-521.30562744,0.00038368,21]
[343284121,1732541445545,-500.0,0.00038368,21]
[343284123,1732541445569,-500.0,0.00038368,21]
[343284125,1732541445588,-500.0,0.00038368,21]
[343284127,1732541445597,-514.08,0.00038368,21]
[343284129,1732541445607,-500.0,0.00038368,21]
[343284131,1732541445616,-500.0,0.00038368,21]
[343284133,1732541445625,-500.0,0.00038368,21]
[343284134,1732541445634,-500.0,0.00038368,21]
[343284136,1732541445643,-422.76,0.00038368,21]
[343284138,1732541445653,-500.0,0.00038368,21]
[343284140,1732541445664,-414.49836921,0.00038368,21]
[343284142,1732541445673,-500.0,0.00038368,21]
[343284144,1732541445683,-500.0,0.00038368,21]
[343284146,1732541445693,-500.0,0.00038368,21]
[343284147,1732541445702,-500.0,0.00038368,21]
[343284149,1732541445712,-500.0,0.00038368,21]
[343284151,1732541445722,-500.0,0.00038368,21]
[343284153,1732541445732,-500.0,0.00038368,21]
[343284155,1732541445741,-500.0,0.00038368,21]
[343284157,1732541445750,-500.0,0.00038368,21]
[343284159,1732541445759,-500.0,0.00038368,21]
[343284160,1732541445769,-1737.33,0.00038368,21]
[343284162,1732541445778,-500.0,0.00038368,21]
[343284164,1732541445788,-500.0,0.00038368,21]
[343284166,1732541445797,-500.0,0.00038368,21]
[343284168,1732541445806,-500.0,0.00038368,7]
[343284169,1732541445816,-500.0,0.00038368,21]
[343284171,1732541445825,-500.0,0.00038368,21]
[343284173,1732541445835,-500.0,0.00038368,21]
[343284175,1732541445844,-500.0,0.00038368,21]
[343284177,1732541445854,-500.0,0.00038368,21]
[343284178,1732541445864,-500.0,0.00038368,21]
[343284180,1732541445873,-685.67,0.00038368,21]
[343284201,1732541446091,-500.0,0.00038368,21]
[343284203,1732541446100,-500.0,0.00038368,21]
[343284204,1732541446110,-1320.23,0.00038368,21]
[343284207,1732541446120,-500.0,0.00038368,21]
[343284210,1732541446129,-500.0,0.00038368,21]
[343284212,1732541446138,-1552.88,0.00038368,21]
[343284215,1732541446147,-500.0,0.00038368,21]
[343284218,1732541446156,-500.0,0.00038368,21]
[343284221,1732541446168,-500.0,0.00038368,21]
[343284224,1732541446178,-500.0,0.00038368,21]
[343284227,1732541446187,-500.0,0.00038368,21]
[343284228,1732541446197,-500.0,0.00038368,21]
[343284230,1732541446206,-500.0,0.00038368,21]
[343284232,1732541446216,-743.18,0.00038368,21]
[343284234,1732541446226,-500.0,0.00038368,21]
[343284236,1732541446236,-500.0,0.00038368,21]
[343284238,1732541446245,-2591.61,0.00038368,21]
[343284240,1732541446255,-500.0,0.00038368,21]
[343284242,1732541446264,-888.24,0.00038368,21]
[343284243,1732541446273,-500.0,0.00038368,21]
[343284245,1732541446282,-500.0,0.00038368,21]
[343284247,1732541446291,-500.0,0.00038368,21]
[343284249,1732541446301,-884.95,0.00038368,21]
[343284251,1732541446310,-500.0,0.00038368,21]
[343284253,1732541446319,-500.0,0.00038368,21]
[343284255,1732541446328,-500.0,0.00038368,21]
[343284257,1732541446337,-510.19,0.00038368,21]
[343284258,1732541446349,-997.64,0.00038368,21]
[343284260,1732541446358,-500.0,0.00038368,21]
[343284262,1732541446367,-500.0,0.00038368,21]
[343284264,1732541446378,-338.182,0.00038368,21]
[343284266,1732541446387,-500.0,0.00038368,21]
[343284268,1732541446396,-500.0,0.00038368,21]
[343284269,1732541446406,-500.0,0.00038368,21]
[343284271,1732541446418,-151.0,0.00038368,14]
[343284273,1732541446427,-500.0,0.00038368,21]
[343284275,1732541446437,-159.31,0.00038368,21]